lending/lending_fUSD_20240622
["ID","MTS","AMOUNT","RATE_DAILY","PERIOD"]
[330150668,1719066633368,-482.80728436,0.00014223,2]
[330150669,1719066633377,-172.91,0.00014224,2]
[330150670,1719066633387,-150.0,0.00014237,2]
[330150671,1719066633397,-167.63,0.00014384,2]
[330150672,1719066633406,-210.0,0.00014421,2]
[330150673,1719066633415,-300.0,0.000145,5]
[330150674,1719066633425,-600.0,0.000146,5]
[330150675,1719066633434,-287.92176092,0.00014699,2]
[330150676,1719066633443,-900.0,0.000147,5]
[330150677,1719066633453,-196.12854204,0.00014726,2]
[330150678,1719066633463,-156.52071995,0.00014726,2]
[330150679,1719066633473,-35009.9324,0.000148,2]
[330150680,1719066633482,-1252.7833,0.000148,2]
[330150681,1719066633493,-163.71307365,0.000148,2]
[330150682,1719066633505,-322.12809989,0.000148,2]
[330150683,1719066633522,-1200.0,0.000148,5]
[330150684,1719066633532,-150.0,0.0001485,2]
[330150685,1719066633542,-150.0,0.0001485,2]
[330150686,1719066633554,-150.0,0.0001485,2]
[330150687,1719066633564,-150.0,0.0001485,2]
[330150688,1719066633574,-150.0,0.0001485,2]
[330150689,1719066633584,-150.0,0.0001485,2]
[330150690,1719066633598,-150.0,0.0001485,2]
[330150691,1719066633610,-202.50205,0.0001485,2]
[330150692,1719066633620,-216.4255137,0.0001489,2]
[330150693,1719066633634,-5854.2673,0.000149,2]
[330150694,1719066633644,-698.4351,0.000149,2]
[330150695,1719066633654,-2841.727,0.000149,2]
[330150696,1719066633665,-450000.0,0.000149,2]
[330150697,1719066633674,-438.2805,0.000149,2]
[330150698,1719066633684,-274.6897,0.000149,2]
[330150699,1719066633694,-182.34674816,0.000149,2]
[330150700,1719066633703,-4291.7394,0.000149,2]
[330150701,1719066633714,-16943.4872,0.000149,2]
[330150702,1719066633723,-169.7347945,0.000149,2]
[330150703,1719066633733,-176.81979758,0.000149,2]
[330150704,1719066633743,-181.27433181,0.000149,2]
[330150705,1719066633752,-163.71307365,0.000149,2]
[330150706,1719066634188,-8764.96165143,0.000149,2]
[330150707,1719066634198,-1500.0,0.000149,5]
[330150708,1719066634208,-2578.31676654,0.000149,2]
[330150709,1719066634218,-179.8,0.00014904,3]
[330150710,1719066634228,-340.22069043,0.00014907,2]
[330150711,1719066634238,-155.0,0.00014944,2]
[330150712,1719066634247,-10314.63256302,0.00014978,2]
[330150713,1719066634256,-10763.91191021,0.00014979,2]
[330150714,1719066634266,-151.04160615,0.00014986,2]
[330150715,1719066634276,-7960.19874885,0.00014999,2]
[330150716,1719066634286,-1152.31990522,0.00014999,5]
[330150717,1719066634296,-1571731.05687703,0.00015,2]
[330150718,1719066635338,1000.0,0.0001281,2]
[330150737,1719066638410,-400.4481923,0.00014411,2]
[330150740,1719066638422,-429.98281919,0.00014411,2]
[330150741,1719066638434,-169.56898851,0.00014411,2]
[330150742,1719066638444,-199.93455324,0.00014943,2]
[330150743,1719066638454,-9.28230448,0.00015,2]
[330150744,1719066638466,-487.83876669,0.00015,2]
[330150745,1719066638478,-354.48600667,0.00015,2]
[330150746,1719066638490,-851.471604,0.00015,2]
[330150750,1719066638675,-3144.03115432,0.00015,2]
[330150751,1719066638688,-666.23816241,0.00015,2]
[330150752,1719066638700,-300.0,0.00015,2]
[330150753,1719066638711,-27105.65092375,0.00015,2]
[330150754,1719066638723,-421.17994755,0.00015,2]
[330150755,1719066638735,-427.74518059,0.00015,2]
[330150756,1719066638747,-1220.74373813,0.00015,2]
[330150757,1719066638759,-290.98114141,0.00015,2]
[330150758,1719066638770,-468.12913938,0.00015,2]
[330150759,1719066640475,-417.99263192,0.00015,2]
[330150763,1719066640729,-27804.48745662,0.00015,2]
[330150764,1719066640741,-505.01698485,0.00015,2]
[330150765,1719066640753,-416.54334311,0.00015,2]
[330150766,1719066640765,-382.9548775,0.00015,2]
[330150767,1719066640953,-347.01894184,0.00015,2]
[330150768,1719066640966,-12969.09999999,0.00015,2]
[330150769,1719066640978,-1024.54489517,0.00015,2]
[330150770,1719066640990,-692.37593,0.00015,2]
[330150771,1719066641002,-278.12840218,0.00015,2]
[330150772,1719066641014,-1855.8744321,0.00015,2]
[330150773,1719066641026,-435.82853761,0.00015,2]
[330150790,1719066643371,156.39,0.00018849,30]
[330150793,1719066643385,-431.68423542,0.00015,2]
[330150796,1719066643397,-614.98003177,0.00015,2]
[330150798,1719066643408,-2492.56313245,0.00015,2]
[330150801,1719066643420,-439.30015223,0.00015,2]
[330150802,1719066643431,-426.05634606,0.00015,2]
[330150803,1719066643611,-396.94923464,0.00015,2]
[330150804,1719066643626,-439.79054949,0.00015,2]
[330150805,1719066643637,-1280.12549072,0.00015,2]
[330150806,1719066643649,-614.75103282,0.00015,2]
[330150807,1719066643664,-70858.30368196,0.00015,2]
[330150808,1719066643676,-735.26377905,0.00015,2]
[330150809,1719066643688,-1000.0,0.00015,2]
[330150810,1719066643700,-32569.53000001,0.00015,2]
[330150811,1719066643712,-621.91316261,0.00015,2]
[330150812,1719066643723,-1301.3,0.00015,2]
[330150813,1719066643735,-501.02048023,0.00015,2]
[330150815,1719066643990,156.39,0.00024329,30]
[330150817,1719066644224,-1138.50441589,0.00015,2]
[330150818,1719066644237,-655.16092701,0.00015,2]
[330150819,1719066644268,-416.57917396,0.00015,2]
[330150820,1719066644280,-1946.88,0.00015,2]
[330150821,1719066644291,-133137.50231496,0.00015,2]
[330150823,1719066646389,-175.20791801,0.000149,2]
[330150825,1719066646399,-438.32208199,0.00015,2]
[330150827,1719066646410,-602.00844115,0.00015,2]
[330150836,1719066646630,-64977.37521831,0.00015,2]
[330150837,1719066646641,-2759.37216379,0.00015,2]
[330150838,1719066646654,-431.67966353,0.00015,2]
[330150839,1719066646666,-337.08969517,0.00015,2]
[330150840,1719066646678,-1523.00718957,0.00015,2]
[330150841,1719066646690,-255.5202649,0.00015,2]
[330150842,1719066647575,-280122.16104811,0.00015,2]
[330150843,1719066647588,-521.65332236,0.00015,2]
[330150844,1719066647599,-463.36558516,0.00015,2]
[330150845,1719066647611,-2787.44339086,0.00015,2]
[330150846,1719066647623,-647.02531757,0.00015,2]
[330150847,1719066647634,-377.33058206,0.00015,2]
[330150848,1719066647712,-21264.49106437,0.00015,2]
[330150849,1719066647723,-429.82244863,0.00015,2]
[330150850,1719066647736,-1604.8479588,0.00015,2]
[330150862,1719066794583,200.0,0.00025969,120]
[330150863,1719066796894,1000.0,0.00025969,120]
[330150864,1719066799527,200.0,0.00025806,120]
[330150867,1719067225591,156.39,0.00018849,30]
[330150868,1719067291268,504.64,0.00011752,2]
[330150876,1719067789637,156.39,0.00018849,30]
[330150883,1719067832830,-5957.84753364,0.00013345,2]
[330150884,1719067832842,-9336.7426221,0.00013345,2]
[330150885,1719067832854,-1286.32241983,0.00013345,2]
[330150886,1719067832865,-3250.79755,0.00013345,2]
[330150887,1719067832915,-1200.95,0.00013345,2]
[330150888,1719067832926,-454.25461509,0.00013345,2]
[330150889,1719067832939,-1746.34315883,0.00013345,2]
[330150891,1719067832950,-1099.575,0.00013345,2]
[330150893,1719067832962,-4505.84144173,0.00013345,2]
[330150894,1719067832971,-1265.1746,0.00013347,2]
[330150895,1719067832981,-250.0,0.00013401,2]
[330150896,1719067832991,-13336.64,0.00013446,2]
[330150897,1719067833000,-177.74,0.00013447,2]
[330150898,1719067833010,-250.0,0.00013637,2]
[330150899,1719067833019,-150.0,0.00013644,2]
[330150900,1719067833029,-3044.85,0.00013652,2]
[330150901,1719067833040,-200.0,0.00013658,2]
[330150902,1719067833049,-1000.0,0.00013684,2]
[330150903,1719067833059,-499.99,0.00013684,2]
[330150904,1719067833069,-200.0,0.00013699,2]
[330150905,1719067833079,-164.54,0.00013699,2]
[330150906,1719067833089,-991.45,0.00013699,2]
[330150907,1719067833099,-518.0,0.00013699,2]
[330150908,1719067833110,-1926.46,0.00013714,2]
[330150909,1719067833121,-167.45,0.00013721,2]
[330150910,1719067833131,-157.86,0.00013735,2]
[330150911,1719067833142,-153.66,0.00013736,2]
[330150912,1719067833153,-153.66,0.00013787,2]
[330150913,1719067833164,-153.66,0.00013838,2]
[330150914,1719067833174,-153.66,0.00013889,2]
[330150915,1719067833184,-153.66,0.0001394,2]
[330150916,1719067833195,-153.66,0.00013991,2]
[330150917,1719067833204,-529.54043237,0.00014014,2]
[330150918,1719067833213,-150.0,0.00014015,2]
[330150919,1719067833222,-150.0,0.00014015,2]
[330150920,1719067833232,-1726.13995127,0.00014015,2]
[330150921,1719067833242,-504.64,0.00014016,2]
[330150922,1719067833251,-153.66,0.00014042,2]
[330150923,1719067833262,-153.66,0.00014094,2]
[330150924,1719067833271,-153.66,0.00014145,2]
[330150925,1719067833281,-153.66,0.00014196,2]
[330150926,1719067833290,-612.31619683,0.00014245,2]
[330150927,1719067833300,-153.66,0.00014247,2]
[330150928,1719067833309,-153.66,0.00014298,2]
[330150929,1719067833319,-153.66,0.00014349,2]
[330150930,1719067833328,-164.54,0.00014384,2]
[330150931,1719067833337,-153.66,0.000144,2]
[330150932,1719067833346,-153.66,0.00014451,2]
[330150933,1719067833355,-415.49090939,0.00014643,2]
[330150934,1719067833365,-8611.12952824,0.0001487,2]
[330150935,1719067833374,-906.10254369,0.00014879,2]
[330150936,1719067833383,-9526.8687,0.00014879,2]
[330150937,1719067833394,-1236.00368254,0.0001489,2]
[330150938,1719067833405,-1181.4735,0.0001489,2]
[330150939,1719067833414,-18560.3664,0.000149,2]
[330150940,1719067833424,-1123.3096,0.000149,2]
[330150941,1719067833433,-176.54092728,0.000149,2]
[330150942,1719067833444,-169.7347945,0.000149,2]
[330150943,1719067833453,-541.27718312,0.000149,2]
[330150944,1719067833462,-345.05699352,0.000149,2]
[330150945,1719067833472,-1875.84006658,0.000149,2]
[330150946,1719067833481,-15604.65311922,0.000149,2]
[330150947,1719067833491,-419.29773119,0.00014969,2]
[330150948,1719067833501,-750.17548505,0.0001497,2]
[330150949,1719067833510,-750.17548505,0.0001497,2]
[330150950,1719067833519,-750.17548505,0.0001497,2]
[330150951,1719067833528,-750.17548505,0.00014979,2]
[330150952,1719067833538,-750.17548505,0.00014979,2]
[330150953,1719067833547,-750.17548505,0.00014979,2]
[330150954,1719067833556,-750.17548505,0.00014979,2]
[330150955,1719067833566,-750.17548505,0.00014979,2]
[330150956,1719067833576,-750.17548505,0.00014979,2]
[330150957,1719067833585,-750.17548505,0.00014979,2]
[330150958,1719067833594,-750.17548505,0.00014979,2]
[330150959,1719067833603,-750.17548505,0.00014979,2]
[330150960,1719067833612,-750.17548505,0.00014979,2]
[330150961,1719067833621,-750.17548505,0.00014979,2]
[330150962,1719067833630,-419.29773119,0.00014979,2]
[330150963,1719067833640,-443.80936463,0.00014979,2]
[330150964,1719067833649,-750.17548505,0.0001498,2]
[330150965,1719067833658,-750.17548505,0.0001498,2]
[330150966,1719067833668,-750.17548505,0.0001498,2]
[330150967,1719067833678,-750.17548505,0.0001498,2]
[330150968,1719067833687,-750.17548505,0.0001498,2]
[330150969,1719067833696,-750.17548505,0.0001498,2]
[330150970,1719067833705,-750.17548505,0.0001498,2]
[330150971,1719067833715,-750.17548505,0.0001498,2]
[330150972,1719067833724,-750.17548505,0.0001498,2]
[330150973,1719067833733,-750.17548505,0.0001498,2]
[330150974,1719067833743,-750.17548505,0.0001498,2]
[330150975,1719067833752,-750.17548505,0.0001498,2]
[330150976,1719067833762,-750.17548505,0.0001498,2]
[330150977,1719067833771,-750.17548505,0.0001498,2]
[330150978,1719067833781,-750.17548505,0.0001498,2]
[330150979,1719067833790,-750.17548505,0.0001498,2]
[330150980,1719067833800,-750.17548505,0.0001498,2]
[330150981,1719067833809,-750.17548505,0.0001498,2]
[330150982,1719067833819,-750.17548505,0.0001498,2]
[330150983,1719067833829,-750.17548505,0.0001498,2]
[330150984,1719067833838,-750.17548505,0.0001498,2]
[330150985,1719067833848,-750.17548505,0.0001498,2]
[330150986,1719067833858,-750.17548505,0.0001498,2]
[330150987,1719067833867,-750.17548505,0.0001498,2]
[330150988,1719067833877,-750.17548505,0.0001498,2]
[330150989,1719067833886,-750.17548505,0.0001498,2]
[330150990,1719067833896,-750.17548505,0.0001498,2]
[330150991,1719067833908,-750.17548505,0.0001498,2]
[330150992,1719067833917,-750.17548505,0.0001498,2]
[330150993,1719067833927,-750.17548505,0.0001498,2]
[330150994,1719067833936,-750.17548505,0.0001498,2]
[330150995,1719067833946,-750.17548505,0.0001498,2]
[330150996,1719067833955,-750.17548505,0.0001498,2]
[330150997,1719067833965,-750.17548505,0.0001498,2]
[330150998,1719067833974,-750.17548505,0.0001498,2]
[330150999,1719067833987,-750.17548505,0.0001498,2]
[330151000,1719067833996,-750.17548505,0.0001498,2]
[330151001,1719067834005,-750.17548505,0.0001498,2]
[330151002,1719067834015,-750.17548505,0.0001498,2]
[330151003,1719067834025,-750.17548505,0.0001498,2]
[330151004,1719067834034,-750.17548505,0.0001498,2]
[330151005,1719067834043,-750.17548505,0.0001498,2]
[330151006,1719067834052,-750.17548505,0.0001498,2]
[330151007,1719067834062,-750.17548505,0.0001498,2]
[330151008,1719067834072,-750.17548505,0.0001498,2]
[330151009,1719067834081,-750.17548505,0.0001498,2]
[330151010,1719067834090,-750.17548505,0.0001498,2]
[330151011,1719067834099,-750.17548505,0.0001498,2]
[330151012,1719067834109,-750.17548505,0.0001498,2]
[330151013,1719067834118,-750.17548505,0.0001498,2]
[330151014,1719067834127,-750.17548505,0.0001498,2]
[330151015,1719067834137,-750.17548505,0.0001498,2]
[330151016,1719067834146,-750.17548505,0.0001498,2]
[330151017,1719067834155,-750.17548505,0.0001498,2]
[330151018,1719067834164,-419.29773119,0.0001498,2]
[330151019,1719067834174,-750.17548505,0.00014989,2]
[330151020,1719067834184,-17531.1351625,0.00014989,2]
[330151021,1719067834193,-2314.1595392,0.00014989,2]
[330151022,1719067834202,-750.17548505,0.0001499,2]
[330151023,1719067834211,-750.17548505,0.0001499,2]
[330151024,1719067834221,-750.17548505,0.0001499,2]
[330151025,1719067834231,-750.17548505,0.0001499,2]
[330151026,1719067834240,-750.17548505,0.0001499,2]
[330151027,1719067834250,-750.17548505,0.0001499,2]
[330151028,1719067834259,-750.17548505,0.0001499,2]
[330151029,1719067834268,-750.17548505,0.0001499,2]
[330151030,1719067834277,-750.17548505,0.0001499,2]
[330151031,1719067834287,-750.17548505,0.0001499,2]
[330151032,1719067834296,-750.17548505,0.0001499,2]
[330151033,1719067834306,-9599.92406537,0.0001499,2]
[330151034,1719067834316,-151.31,0.0001499,2]
[330151035,1719067834328,-151.31,0.0001499,2]
[330151036,1719067834337,-151.31,0.0001499,2]
[330151037,1719067834346,-151.31,0.0001499,2]
[330151038,1719067834354,-151.31,0.0001499,2]
[330151039,1719067834366,-151.31,0.0001499,2]
[330151040,1719067834375,-151.31,0.0001499,2]
[330151041,1719067834384,-151.31,0.0001499,2]
[330151042,1719067834394,-151.31,0.0001499,2]
[330151043,1719067834403,-151.31,0.0001499,2]
[330151044,1719067834412,-151.31,0.0001499,2]
[330151045,1719067834422,-151.31,0.0001499,2]
[330151046,1719067834431,-151.31,0.0001499,2]
[330151047,1719067834441,-151.31,0.0001499,2]
[330151048,1719067834450,-151.31,0.0001499,2]
[330151049,1719067834460,-151.31,0.0001499,2]
[330151050,1719067834469,-151.31,0.0001499,2]
[330151051,1719067834479,-151.31,0.0001499,2]
[330151052,1719067834488,-151.31,0.0001499,2]
[330151053,1719067834497,-151.31,0.0001499,2]
[330151054,1719067834507,-151.31,0.0001499,2]
[330151055,1719067834516,-151.31,0.0001499,2]
[330151056,1719067834525,-151.31,0.0001499,2]
[330151057,1719067834534,-151.31,0.0001499,2]
[330151058,1719067834543,-151.31,0.0001499,2]
[330151059,1719067834553,-151.31,0.0001499,2]
[330151060,1719067834563,-151.31,0.0001499,2]
[330151061,1719067834574,-151.31,0.0001499,2]
[330151062,1719067834583,-151.31,0.0001499,2]
[330151063,1719067834592,-151.31,0.0001499,2]
[330151064,1719067834602,-151.31,0.0001499,2]
[330151065,1719067834611,-151.31,0.0001499,2]
[330151066,1719067834621,-151.31,0.0001499,2]
[330151067,1719067834630,-151.31,0.0001499,2]
[330151068,1719067834639,-151.31,0.0001499,2]
[330151069,1719067834650,-151.31,0.0001499,2]
[330151070,1719067834660,-151.31,0.0001499,2]
[330151071,1719067834671,-151.31,0.0001499,2]
[330151072,1719067834681,-151.31,0.0001499,2]
[330151073,1719067834691,-151.31,0.0001499,2]
[330151074,1719067834701,-151.31,0.0001499,2]
[330151075,1719067834711,-151.31,0.0001499,2]
[330151076,1719067834721,-151.31,0.0001499,2]
[330151077,1719067834731,-151.31,0.0001499,2]
[330151078,1719067834741,-151.31,0.0001499,2]
[330151079,1719067834751,-151.31,0.0001499,2]
[330151080,1719067834761,-151.31,0.0001499,2]
[330151081,1719067834770,-151.31,0.0001499,2]
[330151082,1719067834781,-151.31,0.0001499,2]
[330151083,1719067834791,-151.31,0.0001499,2]
[330151084,1719067834800,-151.31,0.0001499,2]
[330151085,1719067834810,-151.31,0.0001499,2]
[330151086,1719067834819,-151.31,0.0001499,2]
[330151087,1719067834831,-151.31,0.0001499,2]
[330151088,1719067834841,-151.31,0.0001499,2]
[330151089,1719067834850,-151.31,0.0001499,2]
[330151090,1719067834860,-151.31,0.0001499,2]
[330151091,1719067834869,-151.31,0.0001499,2]
[330151092,1719067834879,-151.31,0.0001499,2]
[330151093,1719067834889,-151.31,0.0001499,2]
[330151094,1719067834903,-151.31,0.0001499,2]
[330151095,1719067834913,-151.31,0.0001499,2]
[330151096,1719067834923,-3136.88266011,0.00014999,2]
[330151097,1719067834932,-778.02154041,0.00014999,5]
[330151098,1719067834943,-98903.38442572,0.00015,2]
[330151099,1719067834958,-1044.25752579,0.00015,2]
[330151100,1719067834969,-1275.73562343,0.00015,2]
[330151101,1719067834983,-453.4294482,0.00015,2]
[330151102,1719067834996,-341.48088377,0.00015,2]
[330151103,1719067835008,-872.67905712,0.00015,2]
[330151104,1719067835020,-5660.36809885,0.00015,2]
[330151105,1719067835032,-363913.83126167,0.00015,2]
[330151106,1719067835044,-2123.99997,0.00015,2]
[330151107,1719067835057,-315.29707946,0.00015,2]
[330151108,1719067835068,-522.55327531,0.00015,2]
[330151109,1719067835081,-1865.69249295,0.00015,2]
[330151110,1719067835093,-561.51132701,0.00015,2]
[330151111,1719067835104,-555.90330277,0.00015,2]
[330151112,1719067835116,-2199.03812002,0.00015,2]
[330151113,1719067835128,-2253.76645182,0.00015,2]
[330151114,1719067835139,-327.85685687,0.00015,2]
[330151115,1719067835263,-606.15,0.00015,2]
[330151117,1719067839228,-2820.32,0.00014878,2]
[330151120,1719067839241,-820.5999,0.00014878,2]
[330151123,1719067839254,-6893.50734603,0.00014878,2]
[330151126,1719067839264,-1023.79352426,0.0001489,2]
[330151128,1719067839275,-1023.79352426,0.0001489,2]
[330151129,1719067839285,-1023.79352426,0.0001489,2]
[330151130,1719067839295,-1023.79352426,0.0001489,2]
[330151131,1719067839306,-1023.79352426,0.0001489,2]
[330151132,1719067839316,-1023.79352426,0.0001489,2]
[330151133,1719067839328,-1023.79352426,0.0001489,2]
[330151134,1719067839338,-1023.79352426,0.0001489,2]
[330151135,1719067839347,-1023.79352426,0.0001489,2]
[330151136,1719067839360,-1023.79352426,0.0001489,2]
[330151137,1719067839371,-1023.79352426,0.0001489,2]
[330151138,1719067839381,-1023.79352426,0.0001489,2]
[330151139,1719067839391,-1023.79352426,0.0001489,2]
[330151140,1719067839402,-1023.79352426,0.0001489,2]
[330151141,1719067839413,-1023.79352426,0.0001489,2]
[330151142,1719067839423,-1023.79352426,0.0001489,2]
[330151143,1719067839433,-560.9,0.0001499,3]
[330151144,1719067839443,-15573.83233963,0.00015,2]
[330151145,1719067839456,-2588.0,0.00015,2]
[330151146,1719067839469,-11309.65662636,0.00015,2]
[330151147,1719067839480,-33769.10643809,0.00015,2]
[330151148,1719067839493,-999.63,0.00015,2]
[330151149,1719067839505,-6449.58783952,0.00015,2]
[330151150,1719067839845,-1023.79352426,0.0001489,2]
[330151151,1719067839855,-1023.79352426,0.0001489,2]
[330151152,1719067839865,-3136.88266011,0.00014999,2]
[330151153,1719067839874,-51018.60558888,0.00015,2]
[330151154,1719067840577,-153.77125084,0.00013247,2]
[330151156,1719067840587,-1023.79352426,0.0001489,2]
[330151157,1719067840596,-1023.79352426,0.0001489,2]
[330151158,1719067840606,-1023.79352426,0.0001495,2]
[330151159,1719067840616,-1023.79352426,0.0001496,2]
[330151160,1719067840626,-1268181.93699823,0.00015,2]
[330151161,1719067840636,-500.0,0.00015,2]
[330151162,1719067840645,-500.0,0.00015,2]
[330151163,1719067840654,-500.0,0.00015,2]
[330151164,1719067840664,-500.0,0.00015,2]
[330151165,1719067840674,-500.0,0.00015,2]
[330151166,1719067840683,-500.0,0.00015,2]
[330151167,1719067840693,-500.0,0.00015,2]
[330151168,1719067840702,-799.0,0.00015,2]
[330151169,1719067840712,-5167992.87967657,0.00015,2]
[330151170,1719067840722,-12862.5491634,0.00015,2]
[330151171,1719067840731,-2566.92691,0.00015,2]
[330151172,1719067840741,-164.54,0.00015068,2]
[330151173,1719067840751,-1000.0,0.00015395,2]
[330151174,1719067840761,-210.0,0.00015417,2]
[330151175,1719067840770,-345.05699349,0.00015471,2]
[330151176,1719067840780,-15604.65311919,0.00015626,2]
[330151177,1719067840789,-164.54,0.00015753,2]
[330151178,1719067840799,-8611.12952816,0.00015761,2]
[330151179,1719067840808,-906.10254361,0.00015769,2]
[330151180,1719067840818,-167.42,0.00015831,2]
[330151181,1719067840828,-1236.00368254,0.00015846,2]
[330151182,1719067840837,-877.41,0.0001589,3]
[330151183,1719067840847,-157.86,0.00016024,2]
[330151184,1719067840856,-345.05699349,0.00016041,2]
[330151185,1719067840870,-12745.04310944,0.00016147,2]
[330151186,1719067840879,-504.64,0.0001628,2]
[330151187,1719067840889,-15604.65311919,0.00016353,2]
[330151188,1719067840900,-3044.85,0.00016391,2]
[330151189,1719067840910,-164.54,0.00016438,2]
[330151190,1719067840920,-345.05699349,0.00016612,2]
[330151191,1719067840930,-8611.12952816,0.00016652,2]
[330151192,1719067840940,-906.10254361,0.00016659,2]
[330151193,1719067840950,-1236.00368254,0.00016801,2]
[330151194,1719067840960,-151.31,0.00016894,2]
[330151195,1719067840969,-114692.0,0.00016904,2]
[330151196,1719067840979,-293.0,0.00016958,2]
[330151197,1719067840990,-549.0,0.00016966,2]
[330151198,1719067840999,-151.31,0.00017069,2]
[330151199,1719067841008,-15604.65311919,0.00017079,2]
[330151200,1719067841101,-1000.0,0.00017105,2]
[330151201,1719067841112,-167.42,0.00017137,2]
[330151202,1719067841122,-345.05699349,0.00017183,2]
[330151203,1719067841131,-852.68,0.00017233,2]
[330151204,1719067841141,-414.88,0.00017233,2]
[330151205,1719067841151,-852.68,0.00017233,2]
[330151206,1719067841160,-836.46,0.00017233,2]
[330151207,1719067841169,-852.68,0.00017233,2]
[330151208,1719067841180,-852.68,0.00017233,2]
[330151209,1719067841191,-852.68,0.00017233,2]
[330151210,1719067841201,-192.13,0.00017233,2]
[330151211,1719067841212,-150.0,0.00017233,2]
[330151212,1719067841229,-172.91,0.00017242,2]
[330151213,1719067841239,-155.0,0.00017259,2]
[330151214,1719067841248,-155.0,0.00017259,2]
[330151215,1719067841259,-570.475,0.00017304,2]
[330151216,1719067841268,-570.475,0.00017311,2]
[330151217,1719067841278,-570.475,0.00017318,2]
[330151218,1719067841287,-570.475,0.00017325,2]
[330151219,1719067841298,-570.475,0.00017332,2]
[330151220,1719067841307,-570.475,0.00017339,2]
[330151221,1719067841316,-570.475,0.00017346,2]
[330151222,1719067841326,-570.475,0.00017353,2]
[330151223,1719067841337,-570.475,0.0001736,2]
[330151224,1719067841346,-570.475,0.00017367,2]
[330151225,1719067841355,-8611.12952816,0.00017543,2]
[330151226,1719067841364,-906.10254361,0.00017549,2]
[330151227,1719067841373,-169.7347945,0.00017563,2]
[330151228,1719067841382,-19999.99,0.00017728,2]
[330151229,1719067841390,-10270.39,0.00017728,2]
[330151230,1719067841399,-29999.99,0.00017728,2]
[330151231,1719067841408,-4417.99,0.00017728,2]
[330151232,1719067841417,-345.05699349,0.00017754,2]
[330151233,1719067841427,-1236.00368254,0.00017757,2]
[330151234,1719067841436,-250.77597332,0.00017781,2]
[330151235,1719067841445,-15604.65311919,0.00017805,2]
[330151236,1719067841453,-500.0,0.00018,2]
[330151237,1719067841462,-176.54092728,0.00018,2]
[330151238,1719067841471,-151.31,0.00018045,2]
[330151239,1719067841481,-150.51,0.00018055,2]
[330151240,1719067841490,-150.0,0.00018055,2]
[330151241,1719067841499,-300.0,0.00018055,2]
[330151242,1719067841508,-708.28,0.00018055,2]
[330151243,1719067841518,-1153.27,0.00018055,2]
[330151244,1719067841527,-151.05,0.00018055,2]
[330151245,1719067841536,-329.06,0.00018055,2]
[330151246,1719067841545,-300.0,0.00018055,2]
[330151247,1719067841554,-845.48,0.00018055,2]
[330151248,1719067841563,-150.98,0.00018055,2]
[330151249,1719067841572,-150.85,0.00018055,2]
[330151250,1719067841583,-150.0,0.00018055,2]
[330151251,1719067841592,-150.0,0.00018055,2]
[330151252,1719067841602,-150.0,0.00018055,2]
[330151253,1719067841610,-150.0,0.00018055,2]
[330151254,1719067841618,-164.57,0.00018055,2]
[330151255,1719067841627,-354.23,0.00018055,2]
[330151256,1719067841636,-423.6,0.00018055,2]
[330151257,1719067841646,-150.0,0.00018055,2]
[330151258,1719067841655,-527.57,0.00018055,2]
[330151259,1719067841664,-150.0,0.00018055,2]
[330151260,1719067841673,-150.0,0.00018055,2]
[330151261,1719067841683,-527.57,0.00018055,2]
[330151262,1719067841693,-423.6,0.00018055,2]
[330151263,1719067841702,-150.0,0.00018055,2]
[330151264,1719067841710,-150.0,0.00018055,2]
[330151265,1719067841720,-150.0,0.00018055,2]
[330151266,1719067841729,-150.0,0.00018055,2]